[Event "Tournoi de MI de l'Echiquier du Pays de Bray"]
[Site "Gournay-en-Bray, France"]
[Date "2023.05.16"]
[Round "3.5"]
[White "MOUHAMAD, Joachim"]
[Black "DECUIGNIERE, Tom"]
[Result "1-0"]
[TimeControl "1h30/40 + 30 (30s/c)"]
[WhiteTitle "FM"]
[BlackTitle "FM"]
[WhiteFideId "656410"]
[BlackFideId "26093820"]
[WhiteElo "2238"]
[BlackElo "2396"]

1. e4 {[%clk 01:30:12]} {[%emt 00:00:46]} c5 {[%clk 01:30:52]} {[%emt
00:00:09]} 2. Nf3 {[%clk 01:29:55]} {[%emt 00:00:46]} d6 {[%clk 01:30:51]}
{[%emt 00:00:32]} 3. d4 {[%clk 01:28:15]} {[%emt 00:02:10]} cxd4 {[%clk
01:31:05]} {[%emt 00:00:16]} 4. Nxd4 {[%clk 01:28:41]} {[%emt 00:00:03]} Nf6
{[%clk 01:31:18]} {[%emt 00:00:18]} 5. Nc3 {[%clk 01:29:03]} {[%emt 00:00:08]}
a6 {[%clk 01:31:14]} {[%emt 00:00:34]} 6. f3 {[%clk 01:25:48]} {[%emt
00:03:44]} e5 {[%clk 01:26:29]} {[%emt 00:05:15]} 7. Nb3 {[%clk 01:26:07]}
{[%emt 00:00:10]} Be7 {[%clk 01:26:40]} {[%emt 00:00:20]} 8. Be3 {[%clk
01:26:01]} {[%emt 00:00:36]} Be6 {[%clk 01:26:22]} {[%emt 00:00:48]} 9. Qd2
{[%clk 01:25:09]} {[%emt 00:01:22]} O-O {[%clk 01:26:08]} {[%emt 00:00:44]} 10.
O-O-O {[%clk 01:24:47]} {[%emt 00:00:51]} Nbd7 {[%clk 01:26:13]} {[%emt
00:00:26]} 11. g4 {[%clk 01:24:49]} {[%emt 00:00:28]} b5 {[%clk 01:26:30]}
{[%emt 00:00:14]} 12. g5 {[%clk 01:24:47]} {[%emt 00:00:31]} b4 {[%clk
01:26:48]} {[%emt 00:00:13]} 13. Ne2 {[%clk 01:24:34]} {[%emt 00:00:41]} Nh5
{[%clk 01:26:10]} {[%emt 00:01:08]} 14. Ng3 {[%clk 01:18:33]} {[%emt 00:06:30]}
a5 {[%clk 01:24:34]} {[%emt 00:02:07]} 15. Nxh5 {[%clk 01:10:43]} {[%emt
00:08:19]} a4 {[%clk 01:24:56]} {[%emt 00:00:10]} 16. Nd4 {[%clk 01:00:12]}
{[%emt 00:11:00]} exd4 {[%clk 01:24:53]} {[%emt 00:00:34]} 17. Qxd4 {[%clk
00:57:30]} {[%emt 00:03:12]} Ne5 {[%clk 01:20:14]} {[%emt 00:05:10]} 18. f4
{[%clk 00:47:08]} {[%emt 00:10:52]} Qc7 {[%clk 01:16:46]} {[%emt 00:03:58]} 19.
Qb6 {[%emt 00:20:03]} Qxb6 {[%clk 01:11:16]} {[%emt 00:05:57]} 20. Bxb6 {[%clk
00:28:06]} {[%emt 00:00:02]} Bg4 {[%clk 01:00:06]} {[%emt 00:11:40]} 21. Ng3
{[%clk 00:26:47]} {[%emt 00:01:47]} b3 {[%clk 00:53:46]} {[%emt 00:06:52]} 22.
a3 {[%clk 00:22:50]} {[%emt 00:04:27]} Bxd1 {[%clk 00:52:41]} {[%emt 00:01:34]}
23. Kxd1 {[%clk 00:23:02]} {[%emt 00:00:18]} bxc2+ {[%clk 00:51:13]} {[%emt
00:01:57]} 24. Kc1 {[%clk 00:20:37]} {[%emt 00:02:54]} Nc6 {[%clk 00:34:29]}
{[%emt 00:17:15]} 25. Nf5 {[%clk 00:16:26]} {[%emt 00:04:39]} Bd8 {[%clk
00:30:46]} {[%emt 00:04:14]} 26. Be3 {[%clk 00:13:47]} {[%emt 00:03:10]} Na5
{[%clk 00:30:57]} {[%emt 00:00:19]} 27. Kxc2 {[%clk 00:13:03]} {[%emt
00:01:13]} Rc8+ {[%clk 00:23:59]} {[%emt 00:07:29]} 28. Kd1 {[%clk 00:10:48]}
{[%emt 00:02:45]} Nc4 {[%clk 00:22:39]} {[%emt 00:01:50]} 29. Bd4 {[%clk
00:10:41]} {[%emt 00:00:38]} Re8 {[%clk 00:21:06]} {[%emt 00:02:03]} 30. Bd3
{[%clk 00:10:24]} {[%emt 00:00:46]} g6 {[%clk 00:19:52]} {[%emt 00:01:45]} 31.
Nh6+ {[%clk 00:07:37]} {[%emt 00:03:17]} Kf8 {[%clk 00:20:18]} {[%emt
00:00:04]} 32. Ng4 {[%clk 00:07:20]} {[%emt 00:00:47]} Bb6 {[%clk 00:19:28]}
{[%emt 00:01:19]} 33. Bc3 {[%clk 00:06:09]} {[%emt 00:01:40]} Ne3+ {[%clk
00:18:45]} {[%emt 00:01:14]} 34. Nxe3 {[%clk 00:06:33]} {[%emt 00:00:06]} Bxe3
{[%clk 00:19:12]} {[%emt 00:00:03]} 35. Rf1 {[%clk 00:06:26]} {[%emt 00:00:37]}
Rc7 {[%clk 00:13:52]} {[%emt 00:05:51]} 36. h4 {[%clk 00:03:40]} {[%emt
00:03:16]} Rb8 {[%clk 00:12:04]} {[%emt 00:02:18]} 37. Bc2 {[%clk 00:02:38]}
{[%emt 00:01:32]} Rc4 {[%clk 00:09:42]} {[%emt 00:02:53]} 38. Rf3 {[%clk
00:01:46]} {[%emt 00:01:23]} Bb6 {[%clk 00:01:28]} {[%emt 00:08:44]} 39. Kd2
{[%clk 00:00:42]} {[%emt 00:01:34]} Rbc8 {[%clk 00:01:43]} {[%emt 00:00:15]} 40.
Bb1 {[%clk 00:00:32]} {[%emt 00:00:40]} Bd4 {[%clk 00:01:16]} {[%emt 00:00:57]}
41. Bxd4 {[%clk 00:26:43]} {[%emt 00:04:48]} Rxd4+ {[%clk 00:32:10]} {[%emt
00:00:07]} 42. Bd3 {[%clk 00:27:06]} {[%emt 00:00:06]} Re8 {[%clk 00:21:53]}
{[%emt 00:10:48]} 43. Re3 {[%clk 00:09:10]} {[%emt 00:18:26]} d5 {[%clk
00:13:20]} {[%emt 00:09:03]} 44. Kc3 {[%clk 00:08:54]} {[%emt 00:00:45]} Rdxe4
{[%clk 00:13:46]} {[%emt 00:00:04]} 45. Bxe4 {[%clk 00:09:09]} {[%emt
00:00:15]} dxe4 {[%clk 00:14:12]} {[%emt 00:00:04]} 46. Kd4 {[%clk 00:04:46]}
{[%emt 00:04:53]} Rb8 {[%clk 00:12:44]} {[%emt 00:01:58]} 47. Rxe4 {[%clk
00:02:48]} {[%emt 00:02:29]} Rxb2 {[%clk 00:12:41]} {[%emt 00:00:33]} 48. Kc5
{[%clk 00:03:04]} {[%emt 00:00:15]} Rh2 {[%clk 00:11:45]} {[%emt 00:01:25]} 49.
Rxa4 {[%clk 00:03:13]} {[%emt 00:00:21]} Rxh4 {[%clk 00:12:11]} {[%emt
00:00:04]} 50. Rb4 {[%clk 00:03:07]} {[%emt 00:00:37]} h5 {[%clk 00:07:25]}
{[%emt 00:05:15]} 51. gxh6 {[%clk 00:02:50]} {[%emt 00:00:47]} Rh5+ {[%clk
00:07:51]} {[%emt 00:00:03]} 52. Kb6 {[%clk 00:02:43]} {[%emt 00:00:37]} Rxh6
{[%clk 00:08:17]} {[%emt 00:00:03]} 53. Kb7 {[%clk 00:02:19]} {[%emt 00:00:55]}
Rh1 {[%clk 00:08:08]} {[%emt 00:00:39]} 54. a4 {[%clk 00:02:39]} {[%emt
00:00:10]} Ra1 {[%clk 00:08:34]} {[%emt 00:00:03]} 55. Kb6 {[%clk 00:02:53]}
{[%emt 00:00:16]} Ke7 {[%clk 00:08:01]} {[%emt 00:01:03]} 56. a5 {[%clk
00:03:09]} {[%emt 00:00:14]} Kd6 {[%clk 00:07:11]} {[%emt 00:01:20]} 57. a6
{[%clk 00:03:25]} {[%emt 00:00:15]} f6 {[%clk 00:06:45]} {[%emt 00:00:55]} 58.
a7 {[%clk 00:03:45]} {[%emt 00:00:10]} g5 {[%clk 00:06:01]} {[%emt 00:01:15]}
59. fxg5 {[%clk 00:03:38]} {[%emt 00:00:36]} fxg5 {[%clk 00:06:28]} {[%emt
00:00:03]} 60. Rb5 {[%clk 00:01:54]} {[%emt 00:02:14]} 1-0

[ePGN "0.1;DGT LiveChess/2.2.5"]

[Event "Tournoi de MI de l'Echiquier du Pays de Bray"]
[Site "Gournay-en-Bray, France"]
[Date "2023.05.16"]
[Round "4.1"]
[White "NIKCEVIC, Nebosja"]
[Black "DEFROMONT, Benjamin"]
[Result "1/2-1/2"]
[TimeControl "1h30/40 + 30 (30s/c)"]
[WhiteTitle "GM"]
[BlackTitle "FM"]
[WhiteFideId "901776"]
[BlackFideId "36068829"]
[WhiteElo "2373"]
[BlackElo "2347"]

1. d4 {[%clk 01:30:58]} {[%emt 00:00:01]} Nf6 {[%clk 01:30:30]} {[%emt
00:00:30]} 2. c4 {[%clk 01:31:21]} {[%emt 00:00:07]} c5 {[%clk 01:29:46]}
{[%emt 00:00:45]} 3. d5 {[%clk 01:31:27]} {[%emt 00:00:23]} b5 {[%clk
01:30:28]} {[%emt 00:00:18]} 4. cxb5 {[%clk 01:24:19]} {[%emt 00:07:38]} a6
{[%clk 01:30:51]} {[%emt 00:00:07]} 5. e3 {[%emt 00:06:46]} g6 {[%clk
01:26:40]} {[%emt 00:01:13]} 6. Nc3 {[%clk 01:21:35]} {[%emt 00:00:26]} Bg7
{[%clk 01:27:00]} {[%emt 00:00:09]} 7. a4 {[%clk 01:16:31]} {[%emt 00:05:34]}
O-O {[%clk 01:26:27]} {[%emt 00:01:03]} 8. Nf3 {[%clk 01:16:48]} {[%emt
00:00:13]} d6 {[%clk 01:18:10]} {[%emt 00:08:48]} 9. Ra3 {[%clk 01:15:43]}
{[%emt 00:01:35]} Bb7 {[%clk 01:10:54]} {[%emt 00:07:45]} 10. e4 {[%clk
01:09:16]} {[%emt 00:06:57]} e6 {[%clk 01:05:25]} {[%emt 00:06:00]} 11. dxe6
{[%clk 01:08:19]} {[%emt 00:01:27]} fxe6 {[%clk 01:01:29]} {[%emt 00:04:25]} 12.
e5 {[%clk 01:08:11]} {[%emt 00:00:38]} dxe5 {[%clk 00:56:03]} {[%emt 00:05:57]}
13. Qxd8 {[%clk 01:02:54]} {[%emt 00:05:47]} Rxd8 {[%clk 00:52:09]} {[%emt
00:04:24]} 14. Ng5 {[%clk 01:01:43]} {[%emt 00:01:40]} Re8 {[%clk 00:47:50]}
{[%emt 00:04:48]} 15. f3 {[%clk 01:02:07]} {[%emt 00:00:06]} Nbd7 {[%clk
00:41:49]} {[%emt 00:06:32]} 16. Nge4 {[%clk 00:45:36]} {[%emt 00:17:00]} Bf8
{[%clk 00:40:16]} {[%emt 00:02:03]} 17. bxa6 {[%clk 00:25:05]} {[%emt
00:21:01]} Bxa6 {[%clk 00:28:55]} {[%emt 00:11:51]} 18. Bb5 {[%clk 00:25:31]}
{[%emt 00:00:04]} Bxb5 {[%clk 00:26:54]} {[%emt 00:02:31]} 19. axb5 {[%clk
00:25:35]} {[%emt 00:00:25]} c4 {[%clk 00:25:11]} {[%emt 00:02:14]} 20. Rxa8
{[%clk 00:23:30]} {[%emt 00:02:35]} Rxa8 {[%clk 00:25:36]} {[%emt 00:00:05]} 21.
Ke2 {[%clk 00:22:31]} {[%emt 00:01:28]} Nd5 {[%clk 00:23:42]} {[%emt 00:02:24]}
22. Rd1 {[%clk 00:21:15]} {[%emt 00:01:46]} N7b6 {[%clk 00:23:20]} {[%emt
00:00:52]} 23. Be3 {[%clk 00:21:12]} {[%emt 00:00:33]} Be7 {[%clk 00:17:18]}
{[%emt 00:06:33]} 24. Nxd5 {[%clk 00:12:38]} {[%emt 00:09:05]} Nxd5 {[%clk
00:15:33]} {[%emt 00:02:15]} 25. Nc3 {[%clk 00:13:02]} {[%emt 00:00:05]} Rd8
{[%clk 00:14:08]} {[%emt 00:01:55]} 26. Ra1 {[%clk 00:11:03]} {[%emt 00:02:28]}
Rb8 {[%clk 00:11:04]} {[%emt 00:03:34]} 27. Ra4 {[%clk 00:06:05]} {[%emt
00:05:28]} Nxc3+ {[%clk 00:07:13]} {[%emt 00:04:22]} 28. bxc3 {[%clk 00:06:31]}
{[%emt 00:00:04]} Rxb5 {[%clk 00:07:32]} {[%emt 00:00:12]} 29. Rxc4 {[%clk
00:06:54]} {[%emt 00:00:05]} Rb2+ {[%clk 00:06:14]} {[%emt 00:01:49]} 30. Kf1
{[%clk 00:07:20]} {[%emt 00:00:04]} Rc2 {[%clk 00:05:25]} {[%emt 00:01:19]} 31.
Bf2 {[%clk 00:06:30]} {[%emt 00:01:20]} Kf7 {[%clk 00:04:55]} {[%emt 00:01:01]}
32. Be1 {[%clk 00:06:45]} {[%emt 00:00:14]} Bg5 {[%clk 00:03:21]} {[%emt
00:02:04]} 33. Re4 {[%clk 00:04:41]} {[%emt 00:02:33]} Rc1 {[%clk 00:01:41]}
{[%emt 00:02:11]} 34. Kf2 {[%clk 00:04:55]} {[%emt 00:00:15]} Kf6 {[%clk
00:01:03]} {[%emt 00:01:08]} 35. h4 {[%clk 00:02:45]} {[%emt 00:02:39]} Rc2+
{[%clk 00:01:16]} {[%emt 00:00:18]} 36. Kf1 {[%clk 00:03:11]} {[%emt 00:00:04]}
Bf4 {[%clk 00:01:32]} {[%emt 00:00:14]} 37. g3 {[%clk 00:03:09]} {[%emt
00:00:32]} Bh6 {[%clk 00:01:49]} {[%emt 00:00:13]} 38. Re2 {[%clk 00:02:00]}
{[%emt 00:01:38]} Rc1 {[%clk 00:02:14]} {[%emt 00:00:05]} 39. Ra2 {[%clk
00:02:27]} {[%emt 00:00:04]} e4 {[%clk 00:00:57]} {[%emt 00:01:47]} 40. fxe4
{[%clk 00:00:48]} {[%emt 00:02:09]} Ke5 {[%clk 00:00:58]} {[%emt 00:00:29]} 41.
Ke2 {[%clk 00:25:37]} {[%emt 00:06:10]} Kxe4 {[%clk 00:26:12]} {[%emt
00:05:47]} 42. Ra4+ {[%clk 00:26:03]} {[%emt 00:00:04]} Kd5 {[%clk 00:25:02]}
{[%emt 00:01:40]} 43. Ra7 {[%clk 00:26:25]} {[%emt 00:00:08]} Ke4 {[%clk
00:23:57]} {[%emt 00:01:35]} 44. Rxh7 {[%clk 00:24:35]} {[%emt 00:02:20]} Rc2+
{[%clk 00:23:59]} {[%emt 00:00:29]} 45. Kf1 {[%clk 00:24:20]} {[%emt 00:00:44]}
Be3 {[%clk 00:17:13]} {[%emt 00:07:17]} 46. Rg7 {[%clk 00:08:11]} {[%emt
00:16:38]} Rc1 {[%clk 00:16:22]} {[%emt 00:01:21]} 47. Ke2 {[%clk 00:07:22]}
{[%emt 00:01:18]} Rc2+ {[%clk 00:16:46]} {[%emt 00:00:07]} 48. Kf1 {[%clk
00:07:43]} {[%emt 00:00:08]} Rc1 {[%clk 00:17:12]} {[%emt 00:00:05]} 49. Ke2
{[%clk 00:07:04]} {[%emt 00:01:08]} Rc2+ {[%clk 00:17:28]} {[%emt 00:00:16]}
1/2-1/2

[Event "Tournoi de MI de l'Echiquier du Pays de Bray"]
[Site "Gournay-en-Bray, France"]
[Date "2023.05.16"]
[Round "4.2"]
[White "DECUIGNIERE, Tom"]
[Black "ROSHKA, Yevgeniy"]
[Result "1-0"]
[TimeControl "1h30/40 + 30 (30s/c)"]
[WhiteTitle "FM"]
[BlackTitle "IM"]
[WhiteFideId "26093820"]
[BlackFideId "14129558"]
[WhiteElo "2396"]
[BlackElo "2508"]

1. d4 {[%clk 01:30:57]} {[%emt 00:00:02]} Nf6 {[%clk 01:30:36]} {[%emt
00:00:20]} 2. c4 {[%clk 01:31:08]} {[%emt 00:00:23]} e6 {[%clk 01:31:00]}
{[%emt 00:00:06]} 3. Nc3 {[%clk 01:30:16]} {[%emt 00:01:21]} Bb4 {[%clk
01:31:23]} {[%emt 00:00:07]} 4. g3 {[%clk 01:29:59]} {[%emt 00:00:47]} O-O
{[%clk 01:26:02]} {[%emt 00:05:51]} 5. Bg2 {[%clk 01:30:06]} {[%emt 00:00:23]}
d6 {[%clk 01:21:28]} {[%emt 00:05:04]} 6. Nf3 {[%clk 01:28:37]} {[%emt
00:01:59]} Qe7 {[%clk 01:21:33]} {[%emt 00:00:25]} 7. Qc2 {[%clk 01:24:27]}
{[%emt 00:04:41]} e5 {[%clk 01:17:59]} {[%emt 00:04:04]} 8. dxe5 {[%clk
01:21:29]} {[%emt 00:03:28]} dxe5 {[%clk 01:18:18]} {[%emt 00:00:11]} 9. a3
{[%clk 01:21:09]} {[%emt 00:00:50]} Bd6 {[%clk 01:15:14]} {[%emt 00:03:34]} 10.
O-O {[%clk 01:17:39]} {[%emt 00:04:00]} c6 {[%clk 01:10:15]} {[%emt 00:05:29]}
11. Bg5 {[%clk 01:06:59]} {[%emt 00:11:10]} h6 {[%clk 01:06:52]} {[%emt
00:03:52]} 12. Bxf6 {[%clk 01:05:53]} {[%emt 00:01:37]} Qxf6 {[%clk 01:07:16]}
{[%emt 00:00:07]} 13. Ne4 {[%clk 01:05:57]} {[%emt 00:00:25]} Qe7 {[%clk
01:01:38]} {[%emt 00:06:08]} 14. Nxd6 {[%clk 01:05:34]} {[%emt 00:00:53]} Qxd6
{[%clk 01:02:01]} {[%emt 00:00:07]} 15. Rfd1 {[%clk 01:03:40]} {[%emt
00:02:24]} Qe7 {[%clk 00:59:57]} {[%emt 00:02:34]} 16. Nh4 {[%clk 00:56:42]}
{[%emt 00:07:28]} a5 {[%clk 00:55:39]} {[%emt 00:04:49]} 17. Nf5 {[%clk
00:55:05]} {[%emt 00:02:07]} Bxf5 {[%clk 00:55:52]} {[%emt 00:00:18]} 18. Qxf5
{[%clk 00:55:29]} {[%emt 00:00:05]} g6 {[%clk 00:55:12]} {[%emt 00:01:09]} 19.
Qd3 {[%clk 00:53:22]} {[%emt 00:02:37]} Na6 {[%clk 00:54:45]} {[%emt 00:00:57]}
20. Qd7 {[%clk 00:50:54]} {[%emt 00:02:58]} Qxd7 {[%clk 00:53:53]} {[%emt
00:01:23]} 21. Rxd7 {[%clk 00:51:19]} {[%emt 00:00:06]} Nc5 {[%clk 00:54:18]}
{[%emt 00:00:05]} 22. Re7 {[%clk 00:50:24]} {[%emt 00:01:24]} f6 {[%clk
00:53:10]} {[%emt 00:01:39]} 23. Rf1 {[%clk 00:39:30]} {[%emt 00:11:24]} a4
{[%clk 00:51:49]} {[%emt 00:01:50]} 24. h4 {[%clk 00:32:32]} {[%emt 00:07:28]}
Rf7 {[%clk 00:50:34]} {[%emt 00:01:45]} 25. Rxf7 {[%clk 00:32:55]} {[%emt
00:00:07]} Kxf7 {[%clk 00:50:59]} {[%emt 00:00:04]} 26. Rd1 {[%clk 00:32:24]}
{[%emt 00:01:01]} Ke7 {[%clk 00:50:00]} {[%emt 00:01:29]} 27. f3 {[%clk
00:28:21]} {[%emt 00:04:34]} Rd8 {[%clk 00:41:11]} {[%emt 00:09:19]} 28. Rxd8
{[%clk 00:28:32]} {[%emt 00:00:19]} Kxd8 {[%clk 00:41:35]} {[%emt 00:00:06]} 29.
Kf2 {[%clk 00:28:03]} {[%emt 00:00:58]} Ke7 {[%clk 00:41:38]} {[%emt 00:00:27]}
30. Ke3 {[%clk 00:26:00]} {[%emt 00:02:33]} Kd6 {[%clk 00:41:37]} {[%emt
00:00:31]} 31. Bh3 {[%clk 00:25:20]} {[%emt 00:01:09]} b6 {[%clk 00:23:41]}
{[%emt 00:18:26]} 32. Kd2 {[%clk 00:18:56]} {[%emt 00:06:54]} Nb3+ {[%clk
00:23:12]} {[%emt 00:01:00]} 33. Kd3 {[%clk 00:19:19]} {[%emt 00:00:06]} Nd4
{[%clk 00:20:16]} {[%emt 00:03:26]} 34. f4 {[%clk 00:18:33]} {[%emt 00:01:17]}
Nb3 {[%clk 00:15:56]} {[%emt 00:04:51]} 35. Bg2 {[%clk 00:13:46]} {[%emt
00:05:16]} Nc5+ {[%clk 00:14:12]} {[%emt 00:02:15]} 36. Ke3 {[%clk 00:13:02]}
{[%emt 00:01:14]} Nd7 {[%clk 00:10:57]} {[%emt 00:03:45]} 37. Be4 {[%clk
00:12:17]} {[%emt 00:01:15]} g5 {[%clk 00:10:28]} {[%emt 00:01:00]} 38. fxg5
{[%clk 00:12:16]} {[%emt 00:00:30]} fxg5 {[%clk 00:10:51]} {[%emt 00:00:08]} 39.
Bc2 {[%clk 00:11:01]} {[%emt 00:01:46]} b5 {[%clk 00:11:09]} {[%emt 00:00:12]}
40. cxb5 {[%clk 00:04:59]} {[%emt 00:06:31]} cxb5 {[%clk 00:11:33]} {[%emt
00:00:06]} 41. Bd3 {[%clk 00:21:46]} {[%emt 00:14:12]} gxh4 {[%clk 00:29:52]}
{[%emt 00:12:42]} 42. gxh4 {[%clk 00:22:12]} {[%emt 00:00:04]} Kc5 {[%clk
00:30:03]} {[%emt 00:00:20]} 43. Ke4 {[%clk 00:22:15]} {[%emt 00:00:27]} Nb6
{[%clk 00:30:07]} {[%emt 00:00:26]} 44. Kxe5 {[%clk 00:21:47]} {[%emt
00:00:59]} Nc4 {[%clk 00:30:32]} {[%emt 00:00:06]} 45. Bxc4 {[%clk 00:22:13]}
{[%emt 00:00:03]} Kxc4 {[%clk 00:31:00]} {[%emt 00:00:03]} 46. e4 {[%clk
00:22:04]} {[%emt 00:00:39]} Kb3 {[%clk 00:30:57]} {[%emt 00:00:33]} 47. Kf5
{[%clk 00:16:55]} {[%emt 00:05:38]} Kxb2 {[%clk 00:31:18]} {[%emt 00:00:09]} 48.
e5 {[%clk 00:17:21]} {[%emt 00:00:04]} b4 {[%clk 00:31:40]} {[%emt 00:00:08]}
49. axb4 {[%clk 00:17:39]} {[%emt 00:00:12]} a3 {[%clk 00:32:01]} {[%emt
00:00:09]} 50. e6 {[%clk 00:18:05]} {[%emt 00:00:04]} a2 {[%clk 00:32:29]}
{[%emt 00:00:02]} 51. e7 {[%clk 00:18:31]} {[%emt 00:00:03]} a1=Q {[%clk
00:32:55]} {[%emt 00:00:05]} 52. e8=Q {[%clk 00:18:57]} {[%emt 00:00:04]} Qf1+
{[%clk 00:23:58]} {[%emt 00:09:27]} 53. Kg6 {[%clk 00:19:00]} {[%emt 00:00:26]}
Qd3+ {[%clk 00:20:44]} {[%emt 00:03:44]} 54. Kxh6 {[%clk 00:18:36]} {[%emt
00:00:54]} Qd2+ {[%clk 00:21:10]} {[%emt 00:00:05]} 55. Kg6 {[%clk 00:17:54]}
{[%emt 00:01:11]} Qd6+ {[%clk 00:21:18]} {[%emt 00:00:22]} 56. Kf5 {[%clk
00:17:53]} {[%emt 00:00:31]} Qxb4 {[%clk 00:21:23]} {[%emt 00:00:26]} 57. h5
{[%clk 00:18:05]} {[%emt 00:00:18]} Qb6 {[%clk 00:21:02]} {[%emt 00:00:51]} 58.
Qe5+ {[%clk 00:16:12]} {[%emt 00:02:23]} Kc1 {[%clk 00:20:49]} {[%emt
00:00:43]} 59. Qf4+ {[%clk 00:16:11]} {[%emt 00:00:31]} Kd1 {[%clk 00:21:11]}
{[%emt 00:00:07]} 60. h6 {[%clk 00:16:10]} {[%emt 00:00:32]} Qc5+ {[%clk
00:20:42]} {[%emt 00:00:59]} 61. Qe5 {[%clk 00:16:05]} {[%emt 00:00:35]} Qc8+
{[%clk 00:19:30]} {[%emt 00:01:42]} 62. Qe6 {[%clk 00:15:24]} {[%emt 00:01:11]}
Qc5+ {[%clk 00:19:38]} {[%emt 00:00:21]} 63. Kg6 {[%clk 00:15:34]} {[%emt
00:00:19]} Qg1+ {[%clk 00:19:04]} {[%emt 00:01:04]} 64. Kf7 {[%clk 00:15:29]}
{[%emt 00:00:35]} Qa7+ {[%clk 00:19:09]} {[%emt 00:00:25]} 65. Qe7 {[%clk
00:15:45]} {[%emt 00:00:15]} Qa2+ {[%clk 00:19:32]} {[%emt 00:00:07]} 66. Kf8
{[%clk 00:15:46]} {[%emt 00:00:29]} Qa8+ {[%clk 00:19:14]} {[%emt 00:00:50]} 67.
Kg7 {[%clk 00:15:46]} {[%emt 00:00:29]} Qg2+ {[%clk 00:19:35]} {[%emt
00:00:09]} 68. Kh8 {[%clk 00:15:12]} {[%emt 00:01:04]} Qb2+ {[%clk 00:19:53]}
{[%emt 00:00:12]} 69. Kh7 {[%clk 00:14:30]} {[%emt 00:01:12]} Qc2+ {[%clk
00:20:16]} {[%emt 00:00:07]} 70. Kg7 {[%clk 00:14:40]} {[%emt 00:00:20]} Qg2+
{[%clk 00:20:19]} {[%emt 00:00:27]} 71. Kf7 {[%clk 00:14:51]} {[%emt 00:00:20]}
Qd5+ {[%clk 00:19:06]} {[%emt 00:01:43]} 72. Qe6 {[%clk 00:14:56]} {[%emt
00:00:25]} Qb7+ {[%clk 00:18:26]} {[%emt 00:01:09]} 73. Ke8 {[%clk 00:15:16]}
{[%emt 00:00:10]} Qa8+ {[%clk 00:18:11]} {[%emt 00:00:44]} 74. Ke7 {[%clk
00:15:37]} {[%emt 00:00:09]} Qh8 {[%clk 00:18:29]} {[%emt 00:00:13]} 75. Qg4+
{[%clk 00:14:36]} {[%emt 00:01:31]} Ke1 {[%clk 00:18:39]} {[%emt 00:00:20]} 76.
Qg7 {[%clk 00:13:13]} {[%emt 00:01:53]} Qb8 {[%clk 00:18:53]} {[%emt 00:00:15]}
77. Qg1+ {[%clk 00:12:57]} {[%emt 00:00:47]} Ke2 {[%clk 00:19:13]} {[%emt
00:00:10]} 78. Qg4+ {[%clk 00:13:17]} {[%emt 00:00:10]} Kf2 {[%clk 00:18:33]}
{[%emt 00:01:07]} 79. Qf5+ {[%clk 00:11:37]} {[%emt 00:02:13]} Kg1 {[%clk
00:18:55]} {[%emt 00:00:08]} 80. h7 {[%clk 00:11:23]} {[%emt 00:00:44]} Qc7+
{[%clk 00:17:52]} {[%emt 00:01:33]} 81. Kf8 {[%clk 00:11:00]} {[%emt 00:00:53]}
Qd8+ {[%clk 00:18:05]} {[%emt 00:00:18]} 82. Kg7 {[%clk 00:10:04]} {[%emt
00:01:26]} Qd4+ {[%clk 00:18:15]} {[%emt 00:00:19]} 83. Kh6 {[%clk 00:09:42]}
{[%emt 00:00:51]} Kh2 {[%clk 00:17:15]} {[%emt 00:01:31]} 84. Qh5+ {[%clk
00:06:48]} {[%emt 00:03:23]} Kg3 {[%clk 00:17:31]} {[%emt 00:00:14]} 85. Qg6+
{[%clk 00:03:32]} {[%emt 00:03:47]} Kh4 {[%clk 00:17:53]} {[%emt 00:00:08]} 86.
Qh5+ {[%clk 00:03:44]} {[%emt 00:00:18]} Kg3 {[%clk 00:18:22]} {[%emt
00:00:02]} 87. Qe8 {[%clk 00:03:57]} {[%emt 00:00:17]} Qd2+ {[%clk 00:17:39]}
{[%emt 00:01:12]} 88. Kg7 {[%clk 00:04:21]} {[%emt 00:00:06]} Qd4+ {[%clk
00:18:01]} {[%emt 00:00:08]} 89. Kg8 {[%clk 00:04:37]} {[%emt 00:00:14]} Qg4+
{[%clk 00:12:48]} {[%emt 00:05:43]} 90. Kf8 {[%clk 00:05:03]} {[%emt 00:00:05]}
Qb4+ {[%clk 00:13:14]} {[%emt 00:00:04]} 91. Qe7 {[%clk 00:05:20]} {[%emt
00:00:12]} Qb8+ {[%clk 00:13:35]} {[%emt 00:00:09]} 92. Kg7 {[%clk 00:05:12]}
{[%emt 00:00:37]} Qb2+ {[%clk 00:13:56]} {[%emt 00:00:10]} 93. Kg8 {[%clk
00:04:26]} {[%emt 00:01:16]} Qb3+ {[%clk 00:13:29]} {[%emt 00:00:57]} 94. Qf7
{[%clk 00:04:23]} {[%emt 00:00:33]} Qb8+ {[%clk 00:13:52]} {[%emt 00:00:07]} 95.
Kg7 {[%clk 00:04:47]} {[%emt 00:00:06]} Qb2+ {[%clk 00:14:16]} {[%emt
00:00:06]} 96. Kg6 {[%clk 00:04:08]} {[%emt 00:01:09]} Qb1+ {[%clk 00:12:52]}
{[%emt 00:01:54]} 97. Qf5 {[%clk 00:04:33]} {[%emt 00:00:04]} Qb6+ {[%clk
00:13:18]} {[%emt 00:00:04]} 98. Kh5 {[%clk 00:03:47]} {[%emt 00:01:16]} Qd4
{[%clk 00:13:47]} {[%emt 00:00:02]} 99. Kh6 {[%clk 00:03:59]} {[%emt 00:00:18]}
Kh4 {[%clk 00:13:45]} {[%emt 00:00:32]} 100. Qe6 {[%clk 00:02:19]} {[%emt
00:02:11]} Qf4+ {[%clk 00:10:31]} {[%emt 00:03:43]} 101. Kg7 {[%clk 00:02:43]}
{[%emt 00:00:06]} Qg5+ {[%clk 00:10:53]} {[%emt 00:00:07]} 102. Kf8 {[%clk
00:02:59]} {[%emt 00:00:15]} Qf4+ {[%clk 00:10:52]} {[%emt 00:00:32]} 103. Ke8
{[%clk 00:02:36]} {[%emt 00:00:52]} Qd4 {[%clk 00:08:04]} {[%emt 00:03:18]} 104.
Kf7 {[%clk 00:02:54]} {[%emt 00:00:13]} Kg3 {[%clk 00:07:27]} {[%emt 00:01:07]}
105. Qg6+ {[%clk 00:02:53]} {[%emt 00:00:31]} Kh2 {[%clk 00:07:14]} {[%emt
00:00:43]} 106. Qh6+ {[%clk 00:03:19]} {[%emt 00:00:04]} Kg1 {[%clk 00:07:40]}
{[%emt 00:00:03]} 107. Qg7+ {[%clk 00:03:47]} {[%emt 00:00:03]} 1-0